[Event "Sambir Charity 2024"]
[Site "Sambir"]
[Date "2024.09.22"]
[Round "1.2"]
[White "Karvatskyi, Oleksii"]
[Black "Popovych, Roksolana"]
[Result "1-0"]
[ECO "A00"]
[WhiteElo "2144"]
[BlackElo "1472"]
[PlyCount "59"]
[EventDate "2024.09.10"]
[EventType "swiss"]
[EventCountry "UKR"]
[TimeControl "5400+30"]

1. Nc3 {[%emt 1:20:52]} e5 {[%emt 1:20:55]} 2. Nf3 {[%emt 0:00:27]} Nc6 {[%emt 0:00:31]} 3. d4 {[%emt 0:00:26]} exd4 {[%emt 0:00:43]} 4. Nxd4 {[%emt 0:00:28]} Bc5 {[%emt 0:00:36]} 5. Nf5 {[%emt 0:00:27]} Qf6 {[%emt 0:00:59]} 6. g4 {[%emt 0:00:34]} Nge7 {[%emt 0:00:56]} 7. Ne4 {[%emt 0:01:50]} Qe5 {[%emt 0:00:54]} 8. Nxc5 {[%emt 0:01:04]} Qxc5 {[%emt 0:00:45]} 9. Nxg7+ {[%emt 0:00:36]} Kf8 {[%emt 0:01:04]} 10. Bh6 {[%emt 0:02:00]} Kg8 {[%emt 0:00:34]} 11. Qd2 {[%emt 0:00:32]} Qd5 {[%emt 0:01:13]} 12. Ne8 {[%emt 0:01:11]} Qxd2+ {[%emt 0:01:22]} 13. Kxd2 {[%emt 0:00:27]} f6 {[%emt 0:01:00]} 14. Nxc7 {[%emt 0:00:52]} Rb8 {[%emt 0:00:27]} 15. e4 {[%emt 0:00:28]} d6 {[%emt 0:01:07]} 16. Bc4+ {[%emt 0:00:30]} d5 {[%emt 0:00:33]} 17. Nxd5 {[%emt 0:01:14]} Be6 {[%emt 0:00:50]} 18. Nxe7+ {[%emt 0:00:29]} Kf7 {[%emt 0:00:34]} 19. Nxc6 {[%emt 0:00:30]} bxc6 {[%emt 0:00:37]} 20. Bxe6+ {[%emt 0:00:27]} Kxe6 {[%emt 0:00:28]} 21. Kc3 {[%emt 0:00:28]} Rhg8 {[%emt 0:00:52]} 22. h3 {[%emt 0:00:29]} Rb5 {[%emt 0:01:10]} 23. Be3 {[%emt 0:00:44]} a6 {[%emt 0:00:43]} 24. f4 {[%emt 0:00:30]} Rgb8 {[%emt 0:00:32]} 25. b3 {[%emt 0:00:27]} Rb4 {[%emt 0:00:45]} 26. Rhe1 {[%emt 0:00:40]} Kd6 {[%emt 0:00:56]} 27. Ba7 {[%emt 0:00:44]} R8b7 {[%emt 0:00:40]} 28. Rad1+ {[%emt 0:00:36]} Ke6 {[%emt 0:00:36]} 29. a4 {[%emt 0:00:36]} c5 {[%emt 0:00:48]} 30. Bxc5 {[%emt 0:00:28] Kd5} 1-0

[Event "Sambir Charity 2024"]
[Site "Sambir"]
[Date "2024.09.22"]
[Round "1.3"]
[White "Pupa, Danylo"]
[Black "Baziuk, Vladyslav"]
[Result "0-1"]
[ECO "A36"]
[WhiteElo "1449"]
[BlackElo "2247"]
[PlyCount "60"]
[EventDate "2024.09.10"]
[EventType "swiss"]
[EventCountry "UKR"]
[TimeControl "5400+30"]

1. c4 {[%emt 1:20:51]} c5 {[%emt 1:20:51]} 2. Nc3 {[%emt 0:00:27]} Nc6 {[%emt 0:00:26]} 3. g3 {[%emt 0:00:26]} g6 {[%emt 0:00:26]} 4. Bg2 {[%emt 0:00:26]} Bg7 {[%emt 0:00:26]} 5. d3 {[%emt 0:00:27]} e5 {[%emt 0:00:32]} 6. e4 {[%emt 0:00:28]} d6 {[%emt 0:00:27]} 7. Nge2 {[%emt 0:00:30]} Nge7 {[%emt 0:00:27]} 8. Be3 {[%emt 0:00:38]} O-O {[%emt 0:00:29]} 9. O-O {[%emt 0:00:28]} f5 {[%emt 0:00:28]} 10. Nd5 {[%emt 0:00:42]} h6 {[%emt 0:00:40]} 11. Qd2 {[%emt 0:00:34]} Kh7 {[%emt 0:00:27]} 12. a3 {[%emt 0:00:42]} a5 {[%emt 0:00:48]} 13. f4 {[%emt 0:00:53]} Nd4 {[%emt 0:00:44]} 14. Bxd4 {[%emt 0:01:12]} cxd4 {[%emt 0:00:28]} 15. b4 {[%emt 0:01:06]} Nxd5 {[%emt 0:00:57]} 16. exd5 {[%emt 0:00:41]} Re8 {[%emt 0:00:50]} 17. b5 {[%emt 0:00:38]} Qb6 {[%emt 0:00:46]} 18. a4 {[%emt 0:00:56]} e4 {[%emt 0:00:40]} 19. Rfe1 {[%emt 0:01:15]} exd3 {[%emt 0:00:51]} 20. Qxd3 {[%emt 0:00:34]} Re3 {[%emt 0:00:27]} 21. Qd2 {[%emt 0:01:22]} d3 {[%emt 0:00:29]} 22. Kh1 {[%emt 0:00:36]} dxe2 {[%emt 0:00:43]} 23. Ra2 {[%emt 0:00:38]} Bd7 {[%emt 0:00:27]} 24. Rxe2 {[%emt 0:01:13]} Rae8 {[%emt 0:00:31]} 25. Bf1 {[%emt 0:01:11]} Rxe2 {[%emt 0:00:27]} 26. Bxe2 {[%emt 0:00:27]} Qf2 {[%emt 0:00:27]} 27. Qd3 {[%emt 0:00:43]} Bd4 {[%emt 0:00:42]} 28. Qd1 {[%emt 0:00:37]} b6 {[%emt 0:00:52]} 29. Rd2 {[%emt 0:00:48]} Bg7 {[%emt 0:00:40]} 30. Bd3 {[%emt 0:00:47]} Re1+ {[%emt 0:00:27]} 0-1

[Event "Sambir Charity 2024"]
[Site "Sambir"]
[Date "2024.09.22"]
[Round "1.4"]
[White "Mikhaletz, Lubomir"]
[Black "Bondarenko, Viktoria B."]
[Result "1-0"]
[ECO "B30"]
[WhiteElo "2272"]
[BlackElo "1460"]
[PlyCount "37"]
[EventDate "2024.09.10"]
[EventType "swiss"]
[EventCountry "UKR"]
[TimeControl "5400+30"]

1. e4 {[%emt 1:20:54]} c5 {[%emt 1:20:51]} 2. Nf3 {[%emt 0:00:27]} Nc6 {[%emt 0:00:26]} 3. b3 {[%emt 0:00:41]} g6 {[%emt 0:00:29]} 4. Bb2 {[%emt 0:00:27]} Nf6 {[%emt 0:00:29]} 5. e5 {[%emt 0:00:59]} Ng8 {[%emt 0:01:07]} 6. e6 {[%emt 0:02:31]} f6 {[%emt 0:00:40]} 7. d4 {[%emt 0:01:10]} cxd4 {[%emt 0:00:43]} 8. Nxd4 {[%emt 0:00:41]} Nxd4 {[%emt 0:00:30]} 9. Qxd4 {[%emt 0:00:36]} dxe6 {[%emt 0:00:37]} 10. Bb5+ {[%emt 0:00:46]} Bd7 {[%emt 0:00:30]} 11. Nc3 {[%emt 0:00:36]} Bxb5 {[%emt 0:01:43]} 12. Qxd8+ {[%emt 0:01:12]} Kxd8 {[%emt 0:00:43]} 13. Nxb5 {[%emt 0:00:32]} e5 {[%emt 0:00:41]} 14. O-O-O+ {[%emt 0:00:44]} Kc8 {[%emt 0:00:35]} 15. Rd3 {[%emt 0:00:41]} e6 {[%emt 0:01:13]} 16. Rc3+ {[%emt 0:00:40]} Kd8 {[%emt 0:01:02]} 17. Rd1+ {[%emt 0:00:32]} Ke7 {[%emt 0:00:34]} 18. Rc7+ {[%emt 0:00:34]} Ke8 {[%emt 0:00:32]} 19. Rxb7 {[%emt 0:00:34]} 1-0

[Event "Sambir Charity 2024"]
[Site "Sambir"]
[Date "2024.09.22"]
[Round "2.1"]
[White "Dubnevych, Maksym"]
[Black "Martseniuk, Oleksandr"]
[Result "1-0"]
[ECO "C15"]
[WhiteElo "2267"]
[BlackElo "1695"]
[PlyCount "115"]
[EventDate "2024.09.10"]
[EventType "swiss"]
[EventCountry "UKR"]
[TimeControl "5400+30"]

1. Nc3 {[%emt 1:20:52]} e6 {[%emt 1:21:00]} 2. d4 {[%emt 0:00:27]} d5 {[%emt 0:00:33]} 3. e4 {[%emt 0:00:30]} Bb4 {[%emt 0:00:29]} 4. exd5 {[%emt 0:00:29]} exd5 {[%emt 0:00:28]} 5. Bd3 {[%emt 0:00:26]} Nf6 {[%emt 0:00:27]} 6. Nge2 {[%emt 0:00:26]} Bg4 {[%emt 0:00:27]} 7. f3 {[%emt 0:00:32]} Bh5 {[%emt 0:00:27]} 8. Nf4 {[%emt 0:00:26]} Bg6 {[%emt 0:00:31]} 9. Qe2+ {[%emt 0:00:28]} Qe7 {[%emt 0:00:28]} 10. Qxe7+ {[%emt 0:00:26]} Kxe7 {[%emt 0:00:27]} 11. Nxg6+ {[%emt 0:00:29]} hxg6 {[%emt 0:00:28]} 12. Bg5 {[%emt 0:00:34]} Bxc3+ {[%emt 0:00:32]} 13. bxc3 {[%emt 0:00:26]} c6 {[%emt 0:00:32]} 14. O-O {[%emt 0:00:31]} Nbd7 {[%emt 0:00:40]} 15. c4 {[%emt 0:00:26]} Rae8 {[%emt 0:01:28]} 16. Rab1 {[%emt 0:00:26]} b6 {[%emt 0:00:26]} 17. cxd5 {[%emt 0:00:26]} cxd5 {[%emt 0:00:26]} 18. a4 {[%emt 0:00:25]} Kd6 {[%emt 0:00:41]} 19. a5 {[%emt 0:00:33]} Kc6 {[%emt 0:00:44]} 20. Bb5+ {[%emt 0:00:26]} Kc7 {[%emt 0:00:30]} 21. Bf4+ {[%emt 0:00:26]} Kb7 {[%emt 0:00:30]} 22. Ra1 {[%emt 0:00:38]} a6 {[%emt 0:00:35]} 23. Bd3 {[%emt 0:00:57]} b5 {[%emt 0:00:28]} 24. Rab1 {[%emt 0:00:39]} Kc6 {[%emt 0:00:29]} 25. Rb3 {[%emt 0:00:26]} Rc8 {[%emt 0:00:42]} 26. Re1 {[%emt 0:00:47]} Rhe8 {[%emt 0:00:36]} 27. Rxe8 {[%emt 0:00:27]} Nxe8 {[%emt 0:00:28]} 28. Rb1 {[%emt 0:01:13]} Nd6 {[%emt 0:00:33]} 29. Bd2 {[%emt 0:00:38]} Re8 {[%emt 0:00:47]} 30. Kf2 {[%emt 0:00:27]} Nc4 {[%emt 0:00:26]} 31. Bb4 {[%emt 0:00:25]} Nb8 {[%emt 0:00:40]} 32. h4 {[%emt 0:01:48]} Kd7 {[%emt 0:00:36]} 33. Bxc4 {[%emt 0:00:31]} dxc4 {[%emt 0:00:31]} 34. d5 {[%emt 0:00:26]} Re5 {[%emt 0:00:46]} 35. Rd1 {[%emt 0:00:26]} Re8 {[%emt 0:00:45]} 36. g4 {[%emt 0:00:47]} f6 {[%emt 0:00:38]} 37. h5 {[%emt 0:01:03]} g5 {[%emt 0:01:04]} 38. Rh1 {[%emt 0:00:38]} Rh8 {[%emt 0:00:32]} 39. Kg3 {[%emt 0:00:36]} Kd8 {[%emt 0:00:32]} 40. Re1 {[%emt 0:00:36]} Re8 {[%emt 0:00:33]} 41. Rh1 {[%emt 0:00:36]} Rh8 {[%emt 0:00:27]} 42. f4 {[%emt 0:00:29]} gxf4+ {[%emt 0:00:49]} 43. Kxf4 {[%emt 0:00:26]} Nd7 {[%emt 0:00:32]} 44. Bd6 {[%emt 0:00:27]} Nf8 {[%emt 0:01:13]} 45. Kf5 {[%emt 0:00:36]} Ke8 {[%emt 0:02:52]} 46. Re1+ {[%emt 0:00:38]} Kd7 {[%emt 0:00:29]} 47. Bxf8 {[%emt 0:00:31]} Rxf8 {[%emt 0:00:30]} 48. Kg6 {[%emt 0:00:26]} b4 {[%emt 0:00:32]} 49. Kxg7 {[%emt 0:00:31]} Rb8 {[%emt 0:00:26]} 50. h6 {[%emt 0:00:27]} Kd6 {[%emt 0:01:02]} 51. h7 {[%emt 0:00:37]} Rb7+ {[%emt 0:00:26]} 52. Kg6 {[%emt 0:00:26]} Rb8 {[%emt 0:00:26]} 53. Re6+ {[%emt 0:00:51]} Kxd5 {[%emt 0:00:28]} 54. Rb6 {[%emt 0:00:26]} b3 {[%emt 0:00:44]} 55. cxb3 {[%emt 0:00:26]} Rxb6 {[%emt 0:00:43]} 56. axb6 {[%emt 0:00:27]} cxb3 {[%emt 0:00:26]} 57. h8=Q {[%emt 0:00:28]} b2 {[%emt 0:00:26]} 58. Qh1+ {[%emt 0:00:29]} 1-0

[Event "Sambir Charity 2024"]
[Site "Sambir"]
[Date "2024.09.22"]
[Round "2.2"]
[White "Farkash, Denys"]
[Black "Karvatskyi, Oleksii"]
[Result "0-1"]
[ECO "B40"]
[WhiteElo "1732"]
[BlackElo "2144"]
[PlyCount "96"]
[EventDate "2024.09.10"]
[EventType "swiss"]
[EventCountry "UKR"]
[TimeControl "5400+30"]

1. e4 {[%emt 1:20:51]} c5 {[%emt 1:20:51]} 2. Nf3 {[%emt 0:00:26]} e6 {[%emt 0:00:27]} 3. c3 {[%emt 0:00:26]} d5 {[%emt 0:01:02]} 4. exd5 {[%emt 0:00:29]} exd5 {[%emt 0:00:32]} 5. d4 {[%emt 0:00:27]} Nf6 {[%emt 0:00:32]} 6. Bd3 {[%emt 0:00:39]} Bd6 {[%emt 0:00:38]} 7. h3 {[%emt 0:00:30]} O-O {[%emt 0:00:30]} 8. O-O {[%emt 0:00:28]} Nbd7 {[%emt 0:00:37]} 9. Re1 {[%emt 0:00:33]} Re8 {[%emt 0:00:33]} 10. Bg5 {[%emt 0:01:34]} Rxe1+ {[%emt 0:00:29]} 11. Qxe1 {[%emt 0:00:33]} Nf8 {[%emt 0:00:28]} 12. Ne5 {[%emt 0:01:01]} Ne6 {[%emt 0:00:35]} 13. Be3 {[%emt 0:01:17]} b6 {[%emt 0:01:31]} 14. Nd2 {[%emt 0:00:56]} Qc7 {[%emt 0:00:35]} 15. Ndf3 {[%emt 0:00:47]} Bb7 {[%emt 0:00:32]} 16. Rc1 {[%emt 0:01:36]} Re8 {[%emt 0:00:37]} 17. b4 {[%emt 0:02:35]} c4 {[%emt 0:00:31]} 18. Bb1 {[%emt 0:00:32]} Ne4 {[%emt 0:00:29]} 19. Nd2 {[%emt 0:02:19]} Bxe5 {[%emt 0:00:46]} 20. dxe5 {[%emt 0:00:34]} Qxe5 {[%emt 0:00:32]} 21. Nf3 {[%emt 0:00:30]} Qb8 {[%emt 0:00:36]} 22. Nd2 {[%emt 0:00:45]} Nf4 {[%emt 0:00:58]} 23. Bxf4 {[%emt 0:00:56]} Qxf4 {[%emt 0:00:31]} 24. Bxe4 {[%emt 0:00:28]} dxe4 {[%emt 0:00:35]} 25. Nxc4 {[%emt 0:00:31]} f5 {[%emt 0:01:39]} 26. Qe3 {[%emt 0:01:30]} Qc7 {[%emt 0:00:33]} 27. Nd2 {[%emt 0:00:41]} Kh8 {[%emt 0:01:14]} 28. Re1 {[%emt 0:00:29]} Rd8 {[%emt 0:01:16]} 29. Nb3 {[%emt 0:00:30]} f4 {[%emt 0:00:38]} 30. Qc1 Rd3 {[%emt 0:00:58]} 31. c4 {[%emt 0:00:55]} Qf7 {[%emt 0:00:55]} 32. Rd1 {[%emt 0:00:33]} f3 {[%emt 0:01:02]} 33. g3 {[%emt 0:00:32]} Qe6 {[%emt 0:00:36]} 34. Rxd3 {[%emt 0:00:31]} exd3 {[%emt 0:00:27]} 35. Qe3 {[%emt 0:00:26]} Qxc4 {[%emt 0:00:38]} 36. Qe8+ Qg8 {[%emt 0:00:28]} 37. Qxg8+ {[%emt 0:00:56]} Kxg8 {[%emt 0:00:27]} 38. Kf1 {[%emt 0:00:26]} Bd5 {[%emt 0:01:05]} 39. Ke1 {[%emt 0:00:29]} Kf7 {[%emt 0:00:34]} 40. Kd2 {[%emt 0:00:26]} Bc4 {[%emt 0:00:28]} 41. Kc3 {[%emt 0:00:35]} b5 {[%emt 0:00:35]} 42. a3 {[%emt 0:00:33]} Bxb3 {[%emt 0:01:24]} 43. Kxb3 {[%emt 0:00:26]} Ke6 {[%emt 0:00:29]} 44. Kc3 {[%emt 0:00:27]} Kd5 {[%emt 0:00:27]} 45. Kxd3 {[%emt 0:00:30]} g6 {[%emt 0:00:42]} 46. g4 {[%emt 0:00:42]} g5 {[%emt 0:00:45]} 47. Ke3 Kc4 48. Kxf3 Kd5 0-1

[Event "Sambir Charity 2024"]
[Site "Sambir"]
[Date "2024.09.22"]
[Round "2.3"]
[White "Baziuk, Vladyslav"]
[Black "Kryvoruchko, Mykhaylo"]
[Result "1-0"]
[ECO "D30"]
[WhiteElo "2247"]
[BlackElo "1585"]
[PlyCount "119"]
[EventDate "2024.09.10"]
[EventType "swiss"]
[EventCountry "UKR"]
[TimeControl "5400+30"]

1. d4 {[%emt 1:20:51]} d5 {[%emt 1:20:52]} 2. c4 {[%emt 0:00:26]} e6 {[%emt 0:00:26]} 3. Nf3 {[%emt 0:00:26]} a6 {[%emt 0:00:26]} 4. g3 {[%emt 0:00:48]} Nf6 {[%emt 0:00:50]} 5. Bg2 {[%emt 0:00:26]} Be7 {[%emt 0:00:44]} 6. O-O {[%emt 0:00:29]} O-O {[%emt 0:00:28]} 7. Qc2 {[%emt 0:00:35]} Nc6 {[%emt 0:02:08]} 8. Rd1 {[%emt 0:01:25]} Nb4 {[%emt 0:00:47]} 9. Qb3 {[%emt 0:00:40]} dxc4 {[%emt 0:00:49]} 10. Qxc4 {[%emt 0:00:26]} Bd7 {[%emt 0:00:39]} 11. Nc3 {[%emt 0:01:21]} Nbd5 {[%emt 0:01:25]} 12. Ne5 {[%emt 0:01:16]} Nxc3 {[%emt 0:01:13]} 13. Qxc3 {[%emt 0:00:29]} Nd5 {[%emt 0:00:40]} 14. Qc2 {[%emt 0:01:03]} Rb8 {[%emt 0:00:53]} 15. Bd2 {[%emt 0:01:10]} Bb5 {[%emt 0:00:56]} 16. e3 {[%emt 0:00:58]} Bd6 {[%emt 0:00:54]} 17. Nc4 {[%emt 0:00:43]} Qe7 {[%emt 0:01:13]} 18. a4 {[%emt 0:01:07]} Bxc4 {[%emt 0:01:10]} 19. Qxc4 {[%emt 0:00:27]} b5 {[%emt 0:00:32]} 20. axb5 {[%emt 0:00:57]} axb5 {[%emt 0:00:27]} 21. Qb3 {[%emt 0:00:26]} Nf6 {[%emt 0:01:17]} 22. Ra7 {[%emt 0:01:35]} e5 {[%emt 0:00:45]} 23. dxe5 {[%emt 0:00:35]} Qxe5 {[%emt 0:00:27]} 24. Bc3 {[%emt 0:00:29]} Qf5 {[%emt 0:00:37]} 25. h3 {[%emt 0:02:54]} Ne4 {[%emt 0:00:58]} 26. Be1 {[%emt 0:00:35]} Nc5 {[%emt 0:00:36]} 27. Qd5 {[%emt 0:00:39]} Qc2 {[%emt 0:00:50]} 28. Qd2 {[%emt 0:00:33]} Qf5 {[%emt 0:00:43]} 29. Qe2 {[%emt 0:00:40]} Rfd8 {[%emt 0:00:40]} 30. e4 {[%emt 0:00:50]} Qe6 {[%emt 0:00:36]} 31. Raa1 {[%emt 0:00:29]} Nb3 {[%emt 0:00:28]} 32. Rab1 {[%emt 0:00:26]} c5 {[%emt 0:00:32]} 33. Kh2 {[%emt 0:00:31]} Nd4 {[%emt 0:00:28]} 34. Qf1 {[%emt 0:00:31]} b4 {[%emt 0:00:35]} 35. f4 {[%emt 0:00:27]} Qb3 {[%emt 0:00:35]} 36. e5 {[%emt 0:00:35]} Be7 {[%emt 0:00:31]} 37. f5 {[%emt 0:00:32]} Qc2 {[%emt 0:00:38]} 38. f6 {[%emt 0:00:31]} Bf8 {[%emt 0:00:26]} 39. Bf2 {[%emt 0:00:32]} Nb3 {[%emt 0:00:34]} 40. Rxd8 {[%emt 0:00:29]} Rxd8 {[%emt 0:00:26]} 41. Re1 {[%emt 0:00:28]} Nd2 {[%emt 0:00:26]} 42. Qe2 {[%emt 0:00:27]} Qxb2 {[%emt 0:00:29]} 43. fxg7 {[%emt 0:00:27]} Bxg7 {[%emt 0:00:27]} 44. e6 {[%emt 0:00:26]} fxe6 {[%emt 0:00:31]} 45. Qxe6+ {[%emt 0:00:27]} Kh8 {[%emt 0:00:27]} 46. Re2 {[%emt 0:00:30]} Qb3 {[%emt 0:00:29]} 47. Qc6 {[%emt 0:00:45]} Qf7 {[%emt 0:00:32]} 48. Qxc5 {[%emt 0:00:30]} b3 {[%emt 0:00:28]} 49. Qb6 {[%emt 0:00:29]} Bf6 {[%emt 0:00:30]} 50. Be1 {[%emt 0:00:31]} Nb1 {[%emt 0:00:31]} 51. Re6 {[%emt 0:00:29]} Kg7 {[%emt 0:00:30]} 52. Bf2 {[%emt 0:00:30]} Nc3 {[%emt 0:00:30]} 53. Rc6 {[%emt 0:00:28]} Nd1 {[%emt 0:00:28]} 54. Bc5 {[%emt 0:00:31]} Rd2 {[%emt 0:00:27]} 55. Rc7 {[%emt 0:00:29]} Qxc7 {[%emt 0:00:35]} 56. Qxc7+ {[%emt 0:00:26]} Kg6 {[%emt 0:00:26]} 57. Kh1 {[%emt 0:00:33]} Nf2+ {[%emt 0:00:28]} 58. Kg1 {[%emt 0:00:28]} Nd3 {[%emt 0:00:27]} 59. Be4+ {[%emt 0:00:28]} Kh6 60. Qxh7+ 1-0

[Event "Sambir Charity 2024"]
[Site "Sambir"]
[Date "2024.09.22"]
[Round "2.4"]
[White "Serbin, Mykola"]
[Black "Mikhaletz, Lubomir"]
[Result "0-1"]
[ECO "C13"]
[WhiteElo "1632"]
[BlackElo "2272"]
[PlyCount "50"]
[EventDate "2024.09.10"]
[EventType "swiss"]
[EventCountry "UKR"]
[TimeControl "5400+30"]

1. d4 {[%emt 1:20:52]} Nf6 {[%emt 1:20:55]} 2. Nc3 {[%emt 0:00:27]} e6 {[%emt 0:00:38]} 3. e4 {[%emt 0:00:32]} d5 {[%emt 0:00:29]} 4. Bg5 {[%emt 0:00:38]} Be7 {[%emt 0:00:27]} 5. Bxf6 {[%emt 0:00:57]} Bxf6 {[%emt 0:00:28]} 6. e5 {[%emt 0:00:28]} Be7 {[%emt 0:00:29]} 7. Qg4 {[%emt 0:00:36]} O-O {[%emt 0:00:50]} 8. O-O-O {[%emt 0:01:01]} c5 {[%emt 0:00:31]} 9. Nf3 {[%emt 0:00:29]} Nc6 {[%emt 0:00:28]} 10. dxc5 {[%emt 0:01:21]} b6 {[%emt 0:00:49]} 11. cxb6 {[%emt 0:00:58]} Qxb6 {[%emt 0:00:27]} 12. Bd3 {[%emt 0:01:42]} Rb8 {[%emt 0:00:42]} 13. Na4 {[%emt 0:00:36]} Qa5 {[%emt 0:00:36]} 14. b3 {[%emt 0:02:01]} Rb4 {[%emt 0:00:23]} 15. Qh3 {[%emt 0:00:45]} g6 {[%emt 0:01:00]} 16. Rde1 {[%emt 0:02:33]} Rxa4 {[%emt 0:01:05]} 17. bxa4 {[%emt 0:00:33]} Nb4 {[%emt 0:00:46]} 18. Kd1 {[%emt 0:02:09]} Nxd3 {[%emt 0:01:25]} 19. cxd3 {[%emt 0:00:26]} Qxa4+ {[%emt 0:00:34]} 20. Ke2 {[%emt 0:00:27]} Ba6 {[%emt 0:01:03]} 21. Rd1 {[%emt 0:01:04]} Qc2+ {[%emt 0:01:46]} 22. Rd2 {[%emt 0:00:28]} Bxd3+ {[%emt 0:00:29]} 23. Ke3 {[%emt 0:00:42]} Qc5+ {[%emt 0:01:07]} 24. Kxd3 {[%emt 0:00:28]} Qc4+ {[%emt 0:00:27]} 25. Ke3 {[%emt 0:00:27]} Qe4# {[%emt 0:00:25]} 0-1

[Event "Sambir Charity 2024"]
[Site "Sambir"]
[Date "2024.09.22"]
[Round "3.1"]
[White "Fainkihen, Efim"]
[Black "Dubnevych, Maksym"]
[Result "0-1"]
[ECO "A14"]
[WhiteElo "1989"]
[BlackElo "2267"]
[PlyCount "92"]
[EventDate "2024.09.10"]
[EventType "swiss"]
[EventCountry "UKR"]
[TimeControl "5400+30"]

1. c4 {[%emt 1:20:52]} e6 {[%emt 1:20:50]} 2. g3 d5 3. Bg2 {[%emt 0:00:53]} Nf6 {[%emt 0:00:51]} 4. Nf3 {[%emt 0:00:26]} Be7 {[%emt 0:00:26]} 5. O-O {[%emt 0:00:28]} O-O {[%emt 0:00:26]} 6. b3 {[%emt 0:00:26]} c5 {[%emt 0:00:27]} 7. Bb2 {[%emt 0:00:37]} Nc6 {[%emt 0:00:25]} 8. cxd5 {[%emt 0:00:27]} exd5 {[%emt 0:00:26]} 9. d4 {[%emt 0:00:27]} b6 {[%emt 0:00:26]} 10. Nc3 {[%emt 0:00:38]} Bb7 {[%emt 0:00:27]} 11. Rc1 {[%emt 0:00:45]} Ne4 {[%emt 0:00:45]} 12. dxc5 {[%emt 0:00:59]} Nxc3 {[%emt 0:00:27]} 13. Bxc3 {[%emt 0:00:39]} bxc5 {[%emt 0:00:26]} 14. Ne5 {[%emt 0:00:35]} Nxe5 {[%emt 0:00:44]} 15. Bxe5 {[%emt 0:00:27]} Qd7 {[%emt 0:00:31]} 16. Qd3 {[%emt 0:00:52]} Qe6 {[%emt 0:00:40]} 17. Bb2 {[%emt 0:00:45]} Rfd8 {[%emt 0:00:26]} 18. Rfe1 {[%emt 0:01:00]} a5 {[%emt 0:00:56]} 19. Qc3 {[%emt 0:02:22]} d4 {[%emt 0:02:04]} 20. Qc4 {[%emt 0:00:34]} Bxg2 {[%emt 0:00:26]} 21. Qxe6 {[%emt 0:00:42]} fxe6 {[%emt 0:00:26]} 22. Kxg2 a4 23. b4 {[%emt 0:05:44]} cxb4 {[%emt 0:00:52]} 24. Rc4 {[%emt 0:00:50]} e5 {[%emt 0:00:38]} 25. f4 {[%emt 0:00:38]} Rac8 {[%emt 0:00:42]} 26. Rec1 {[%emt 0:00:33]} Rxc4 {[%emt 0:00:26]} 27. Rxc4 {[%emt 0:00:25]} exf4 {[%emt 0:00:26]} 28. gxf4 {[%emt 0:00:54]} d3 {[%emt 0:00:26]} 29. exd3 {[%emt 0:00:33]} Rxd3 {[%emt 0:00:26]} 30. Be5 {[%emt 0:00:41]} Rd2+ {[%emt 0:00:45]} 31. Kf3 {[%emt 0:00:26]} Rxa2 {[%emt 0:00:26]} 32. Rc7 {[%emt 0:00:32]} Kf8 {[%emt 0:00:36]} 33. Rb7 {[%emt 0:00:40]} b3 {[%emt 0:00:29]} 34. Ke4 {[%emt 0:00:27]} Bf6 {[%emt 0:00:45]} 35. Bxf6 {[%emt 0:00:36]} gxf6 {[%emt 0:00:26]} 36. Kf5 {[%emt 0:00:25]} Rf2 {[%emt 0:00:31]} 37. Kxf6 Rxf4+ {[%emt 0:00:26]} 38. Ke5 {[%emt 0:00:59]} Rf2 {[%emt 0:00:45]} 39. Rb8+ {[%emt 0:00:34]} Kg7 {[%emt 0:00:27]} 40. Rb7+ {[%emt 0:00:26]} Kg6 {[%emt 0:00:26]} 41. Rb6+ {[%emt 0:00:27]} Kg5 {[%emt 0:00:27]} 42. Kd4 {[%emt 0:00:27]} b2 {[%emt 0:00:27]} 43. Kc3 {[%emt 0:00:26]} a3 {[%emt 0:00:26]} 44. Rb5+ {[%emt 0:00:37]} Kg4 {[%emt 0:00:28]} 45. Rb4+ {[%emt 0:00:29]} Kh3 {[%emt 0:00:26]} 46. Rb3 {[%emt 0:00:37]} Rf3+ {[%emt 0:00:27]} 0-1